Workbook

Sheet Gastrocnemius (mouse) -GSE52550
B2: Supplementary Table 2. - Gastrocnemius muscle of aged mice compared to young mice.
K4: linear-scale (gcrma-normalized)
F5: Ranked by | K5: 10 weeks | N5: 24 months
B6: ProbeSet_id | C6: Gene.symbol | D6: logFC | E6: Rank | F6: # -10xlog10(FDR) | G6: t | H6: P.Value | I6: FDR | J6: B | K6: Young_rep1 | L6: Young_rep2 | M6: Young_rep3 | N6: Old_rep1 | O6: Old_rep2 | P6: Old_rep3
B7: 1425385_a_at | C7: Ighm | D7: 3.2218582 | E7: 1 | F7: =-10*LOG10(I7) -> 41.88 | G7: 25.016754 | H7: 4.31E-09 | I7: 6.48e-05 | J7: 9.754199 | K7: 8.014642248 | L7: 10.12253607 | M7: 13.11473215 | N7: 662.2789285 | O7: 581.755905 | P7: 565.5812596
B8: 1424831_at | C8: Cpne2 | D8: 2.8472516 | E8: 2 | F8: =-10*LOG10(I8) -> 40.60 | G8: 23.295882 | H8: 7.71E-09 | I8: 8.7e-05 | J8: 9.454982 | K8: 223.3153384 | L8: 200.7867546 | M8: 201.3451762 | N8: 2375.184503 | O8: 3004.467125 | P8: 1821.109773
B9: 1417279_at | C9: Itpr1 | D9: 2.1632544 | E9: 3 | F9: 38.60 | G9: 21.381001 | H9: 1.55E-08 | I9: 0.0001381 | J9: 9.065552 | K9: 445.5271405 | L9: 346.5824712 | M9: 424.1495092 | N9: 2672.768033 | O9: 2487.455862 | P9: 2183.469616
B10: 1434628_a_at | C10: Rhpn2 | D10: 1.6746539 | E10: 4 | F10: 36.72 | G10: 19.485072 | H10: 3.30E-08 | I10: 0.0002128 | J10: 8.608391 | K10: 85.4481703 | L10: 104.4438377 | M10: 103.2715774 | N10: 346.4045712 | O10: 419.2296872 | P10: 426.0189739
B11: 1427329_a_at | C11: Ighm | D11: 1.5939885 | E11: 5 | F11: 31.74 | G11: 16.177885 | H11: 1.49E-07 | I11: 0.0006701 | J11: 7.587144 | K11: 1367.2467 | L11: 1358.138292 | M11: 1431.718784 | N11: 4757.415984 | O11: 5944.919947 | P11: 4932.953596
B12: 1432075_a_at | C12: Tekt1 | D12: 1.8338251 | E12: 6 | F12: 31.36 | G12: 15.815116 | H12: 1.78e-07 | I12: 0.000731 | J12: 7.45366 | K12: 58.10982619 | L12: 90.95173657 | M12: 47.79186882 | N12: 547.4250475 | O12: 494.7699967 | P12: 414.2156958
B13: 1438059_at | C13: Ctxn3 | D13: 1.3852115 | E13: 7 | F13: 31.18 | G13: 15.394549 | H13: 2.21E-07 | I13: 0.0007619 | J13: 7.292671 | K13: 4042.237946 | L13: 3914.036541 | M13: 3869.471519 | N13: 11832.68966 | O13: 14757.73201 | P13: 12155.48847
B14: 1417765_a_at | C14: Amy1 | D14: 2.0547472 | E14: 8 | F14: 31.18 | G14: 15.300162 | H14: 2.33e-07 | I14: 0.0007619 | J14: 7.255586 | K14: 1778.785971 | L14: 2606.556044 | M14: 2361.2549 | N14: 10764.8932 | O14: 10551.13252 | P14: 13890.89157
B15: 1460203_at | C15: Itpr1 | D15: 1.5835624 | E15: 9 | F15: 30.79 | G15: 14.817271 | H15: 3.01E-07 | I15: 0.0008332 | J15: 7.060149 | K15: 826.793991 | L15: 779.6695076 | M15: 785.641296 | N15: 3306.519426 | O15: 3011.574957 | P15: 2661.091611
B16: 1427115_at | C16: Myh3 | D16: 2.1445403 | E16: 10 | F16: 30.79 | G16: 14.447204 | H16: 3.68e-07 | I16: 0.0008332 | J16: 6.903646 | K16: 86.1076258 | L16: 133.685299 | M16: 165.5156701 | N16: 672.4001239 | O16: 987.425482 | P16: 912.4840776
B17: 1448468_a_at | C17: Kcnab1 | D17: 2.3796807 | E17: 11 | F17: 30.79 | G17: 14.440872 | H17: 3.69E-07 | I17: 0.0008332 | J17: 6.900916 | K17: 62.10533248 | L17: 54.0916031 | M17: 63.11141356 | N17: 566.0801372 | O17: 615.2806101 | P17: 927.7740895
B18: 1454740_at | C18: Mib1 | D18: 2.1432723 | E18: 12 | F18: 30.28 | G18: 14.058615 | H18: 4.58e-07 | I18: 0.0009383 | J18: 6.732685 | K18: 2470.675946 | L18: 3260.165447 | M18: 3893.096597 | N18: 21995.66431 | O18: 19340.14176 | P18: 14585.69494
B19: 1431805_a_at | C19: Rhpn2 | D19: 1.6452842 | E19: 13 | F19: 29.18 | G19: 13.472464 | H19: 6.43e-07 | I19: 0.0012074 | J19: 6.461197 | K19: 7.41754138 | L19: 9.081737457 | M19: 13.62778181 | N19: 73.76116435 | O19: 83.36698342 | P19: 83.26081138
B20: 1451818_at | C20: Mib1 | D20: 1.5389912 | E20: 14 | F20: 28.83 | G20: 13.197671 | H20: 7.57e-07 | I20: 0.0013096 | J20: 6.327969 | K20: 35.85961278 | L20: 67.33797212 | M20: 32.63538269 | N20: 244.2045492 | O20: 248.5290685 | P20: 181.4452083
B21: 1417273_at | C21: Pdk4 | D21: 1.1222238 | E21: 15 | F21: 28.83 | G21: 12.966546 | H21: 8.71E-07 | I21: 0.0013096 | J21: 6.212827 | K21: 21918.74437 | L21: 23423.91116 | M21: 22058.03505 | N21: 54426.71712 | O21: 57249.83001 | P21: 58284.33547
B22: 1420657_at | C22: Ucp3 | D22: 1.850522 | E22: 16 | F22: 28.76 | G22: 12.812673 | H22: 9.57e-07 | I22: 0.0013308 | J22: 6.134559 | K22: 770.6616818 | L22: 843.7961935 | M22: 926.6522404 | N22: 3286.566141 | O22: 3701.986698 | P22: 5212.213793
B23: 1448169_at | C23: Krt18 | D23: 2.8822056 | E23: 17 | F23: 28.45 | G23: 12.575246 | H23: 1.11E-06 | I23: 0.0014299 | J23: 6.011196 | K23: 7.347031947 | L23: 7.516094965 | M23: 6.232613245 | N23: 367.6924723 | O23: 518.5695121 | P23: 232.8261516
B24: 1454043_a_at | C24: Kcnab1 | D24: 1.8079917 | E24: 18 | F24: 28.00 | G24: 12.244872 | H24: 1.37e-06 | I24: 0.0015834 | J24: 5.83412 | K24: 4.470285555 | L24: 4.470285555 | M24: 4.470285555 | N24: 19.08606095 | O24: 27.59030713 | P24: 65.83593349
B25: 1451257_at | C25: Acsl6 | D25: 1.1207439 | E25: 19 | F25: 27.56 | G25: 12.035593 | H25: 1.57E-06 | I25: 0.0017523 | J25: 5.71857 | K25: 1600.660888 | L25: 1431.230639 | M25: 1526.739326 | N25: 4112.037249 | O25: 4070.987647 | P25: 3565.817938
B26: 1440085_at | C26: Eda2r | D26: 1.42957 | E26: 20 | F26: 26.58 | G26: 11.58413 | H26: 2.12e-06 | I26: 0.0021996 | J26: 5.45996 | K26: 1000.747254 | L26: 670.9011211 | M26: 811.2629554 | N26: 3543.968268 | O26: 2584.593576 | P26: 2571.593283
B27: 1430976_a_at | C27: Mrpl9 | D27: 1.02596 | E27: 21 | F27: 26.58 | G27: 11.547335 | H27: 2.17e-06 | I27: 0.0021996 | J27: 5.438302 | K27: 278.3658058 | L27: 202.7130552 | M27: 233.2795428 | N27: 690.3825267 | O27: 737.7779918 | P27: 680.2217794
B28: 1420992_at | C28: Ankrd1 | D28: 2.4300288 | E28: 22 | F28: 26.58 | G28: 11.529625 | H28: 2.2e-06 | I28: 0.0021996 | J28: 5.427845 | K28: 395.6293578 | L28: 217.5363007 | M28: 270.6414336 | N28: 1900.388015 | O28: 3042.027897 | P28: 2005.626612
B29: 1426808_at | C29: Lgals3 | D29: 2.5256919 | E29: 23 | F29: 26.58 | G29: 11.467873 | H29: 2.29e-06 | I29: 0.0021996 | J29: 5.391221 | K29: 187.3476447 | L29: 83.65218814 | M29: 110.791752 | N29: 824.6673929 | O29: 1886.767445 | P29: 1500.001703
B30: 1420991_at | C30: Ankrd1 | D30: 2.7946465 | E30: 24 | F30: 26.48 | G30: 11.359139 | H30: 2.47e-06 | I30: 0.0022479 | J30: 5.326112 | K30: 176.0580119 | L30: 96.82294562 | M30: 103.9102697 | N30: 1008.18055 | O30: 1726.769746 | P30: 1074.382005
B31: 1418852_at | C31: Chrna1 | D31: 1.0962607 | E31: 25 | F31: 26.40 | G31: 11.27929 | H31: 2.61E-06 | I31: 0.0022897 | J31: 5.277786 | K31: 600.7917122 | L31: 512.4503069 | M31: 594.9514546 | N31: 1460.681756 | O31: 1450.142402 | P31: 1568.584592
B32: 1455544_at | C32: Zranb3 | D32: 1.2023066 | E32: 26 | F32: 26.40 | G32: 11.235378 | H32: 2.69e-06 | I32: 0.0022897 | J32: 5.251024 | K32: 195.0699432 | L32: 205.8356923 | M32: 252.3559847 | N32: 602.0161411 | O32: 721.0236103 | P32: 724.683991
B33: 1438796_at | C33: Nr4a3 | D33: 1.5089237 | E33: 27 | F33: 26.37 | G33: 11.179664 | H33: 2.8e-06 | I33: 0.0023057 | J33: 5.216876 | K33: 62.19423559 | L33: 64.36059268 | M33: 58.79754195 | N33: 353.4505407 | O33: 607.1723241 | P33: 295.5276838
B34: 1420689_at | C34: 4933415F23Rik | D34: 2.438322 | E34: 28 | F34: 26.21 | G34: 11.09453 | H34: 2.97e-06 | I34: 0.0023914 | J34: 5.164277 | K34: 9.331689581 | L34: 6.452251547 | M34: 13.27403069 | N34: 137.0990251 | O34: 107.8609666 | P34: 42.10898552
B35: 1424698_s_at | C35: Gca | D35: 0.9372502 | E35: 29 | F35: 26.14 | G35: 11.044683 | H35: 3.08e-06 | I35: 0.0024335 | J35: 5.133242 | K35: 152.734746 | L35: 187.7982664 | M35: 208.5170688 | N35: 437.5307099 | O35: 433.1304094 | P35: 468.4989904
B36: 1449519_at | C36: Gadd45a | D36: 1.7920292 | E36: 30 | F36: 26.07 | G36: 10.983335 | H36: 3.21e-06 | I36: 0.0024741 | J36: 5.094803 | K36: 1140.859827 | L36: 880.5497239 | M36: 893.1573171 | N36: 4047.260588 | O36: 4981.480922 | P36: 3208.842366
B37: 1422217_a_at | C37: Cyp1a1 | D37: 0.9909021 | E37: 31 | F37: 25.36 | G37: 10.63518 | H37: 4.13e-06 | I37: 0.0029084 | J37: 4.871473 | K37: 11.52636269 | L37: 16.26088748 | M37: 10.97800488 | N37: 16.31014502 | O37: 19.69378377 | P37: 35.46644182
B38: 1420658_at | C38: Ucp3 | D38: 1.847311 | E38: 32 | F38: 25.27 | G38: 10.5842 | H38: 4.28e-06 | I38: 0.0029725 | J38: 4.838014 | K38: 282.474966 | L38: 354.3649284 | M38: 316.2023337 | N38: 1213.662028 | O38: 1636.781562 | P38: 2413.367411
B39: 1452027_a_at | C39: Trp63 | D39: 0.9432611 | E39: 33 | F39: 25.05 | G39: 10.422579 | H39: 4.83e-06 | I39: 0.0031265 | J39: 4.730626 | K39: 68.88967333 | L39: 90.61686357 | M39: 44.04421213 | N39: 198.2052006 | O39: 248.7601135 | P39: 159.0949202
B40: 1419103_a_at | C40: Abhd6 | D40: 1.0006386 | E40: 34 | F40: 24.81 | G40: 10.24371 | H40: 5.52e-06 | I40: 0.0033019 | J40: 4.609404 | K40: 171.1411247 | L40: 224.8473962 | M40: 240.20613 | N40: 500.3203199 | O40: 462.6651968 | P40: 561.7619588
B41: 1434963_at | C41: Supt3 | D41: 1.0826036 | E41: 35 | F41: 24.81 | G41: 10.199297 | H41: 5.71E-06 | I41: 0.0033019 | J41: 4.578911 | K41: 145.6431055 | L41: 137.3864626 | M41: 125.727946 | N41: 471.0470641 | O41: 508.2402088 | P41: 446.7495019
B42: 1449799_s_at | C42: Pkp2 | D42: 1.334199 | E42: 36 | F42: 24.81 | G42: 10.198557 | H42: 5.71e-06 | I42: 0.0033019 | J42: 4.578402 | K42: 205.5589659 | L42: 195.7042413 | M42: 191.516024 | N42: 716.5204297 | O42: 561.6194759 | P42: 535.8841048
B43: 1438596_at | C43: 1500017E21Rik | D43: 0.821492 | E43: 37 | F43: 24.54 | G43: 10.024171 | H43: 6.52e-06 | I43: 0.0035164 | J43: 4.457118 | K43: 15.48330976 | L43: 15.20280366 | M43: 15.76721589 | N43: 39.82499593 | O43: 19.78659682 | P43: 36.11398941
B44: 1427201_at | C44: Mustn1 | D44: 1.6004706 | E44: 38 | F44: 24.40 | G44: 9.930268 | H44: 7.01e-06 | I44: 0.0036339 | J44: 4.390774 | K44: 1555.459374 | L44: 1115.724518 | M44: 1034.633476 | N44: 4172.106253 | O44: 5401.30798 | P44: 5831.42741
B45: 1417400_at | C45: Rai14 | D45: 1.4174176 | E45: 39 | F45: 24.40 | G45: 9.916268 | H45: 7.09e-06 | I45: 0.0036339 | J45: 4.38082 | K45: 143.9870292 | L45: 169.3763952 | M45: 194.0629507 | N45: 470.2923495 | O45: 851.1632346 | P45: 681.3002004
B46: 1416178_a_at | C46: Plekhb1 | D46: 0.9867357 | E46: 40 | F46: 24.25 | G46: 9.844344 | H46: 7.50E-06 | I46: 0.0037578 | J46: 4.329422 | K46: 1112.917846 | L46: 1276.111012 | M46: 1354.416938 | N46: 3078.730745 | O46: 3012.228121 | P46: 2976.070167
B47: 1420884_at | C47: Sln | D47: 3.8510981 | E47: 41 | F47: 23.99 | G47: 9.69793 | H47: 8.41e-06 | I47: 0.0039942 | J47: 4.223432 | K47: 74.31732925 | L47: 16.79040444 | M47: 17.26831385 | N47: 660.147108 | O47: 1567.720355 | P47: 2436.273452
B48: 1424354_at | C48: Tmem140 | D48: 0.8893819 | E48: 42 | F48: 23.86 | G48: 9.588432 | H48: 9.18E-06 | I48: 0.004116 | J48: 4.142955 | K48: 1172.316641 | L48: 1142.500457 | M48: 1083.277786 | N48: 2313.507701 | O48: 2638.734139 | P48: 2502.086466
B49: 1450511_at | C49: Musk | D49: 1.0805476 | E49: 43 | F49: 23.79 | G49: 9.553051 | H49: 9.44e-06 | I49: 0.0041749 | J49: 4.116727 | K49: 128.8082803 | L49: 144.7490079 | M49: 171.7301645 | N49: 318.4945469 | O49: 367.3817103 | P49: 370.8051117
B50: 1429183_at | C50: Pkp2 | D50: 1.1765754 | E50: 44 | F50: 23.68 | G50: 9.496563 | H50: 9.88E-06 | I50: 0.0042824 | J50: 4.074623 | K50: 54.14556401 | L50: 46.05171451 | M50: 53.06382028 | N50: 216.0363414 | O50: 225.732441 | P50: 204.7485777
B51: 1438133_a_at | C51: Cyr61 | D51: 1.4435284 | E51: 45 | F51: 23.68 | G51: 9.430213 | H51: 1.04e-05 | I51: 0.0042824 | J51: 4.024803 | K51: 47.11770095 | L51: 35.21634782 | M51: 56.17091679 | N51: 194.7740131 | O51: 358.6144154 | P51: 207.2426805
B52: 1416419_s_at | C52: Gabarapl1 | D52: 0.8019442 | E52: 46 | F52: 23.68 | G52: 9.427782 | H52: 1.04E-05 | I52: 0.0042824 | J52: 4.02297 | K52: 1274.854067 | L52: 1177.521253 | M52: 1243.684801 | N52: 2424.142531 | O52: 2629.133975 | P52: 2496.495202
B53: 1456242_at | C53: Gm7325 | D53: 1.6149038 | E53: 47 | F53: 23.59 | G53: 9.390246 | H53: 1.08e-05 | I53: 0.0043751 | J53: 3.994602 | K53: 9.276438083 | L53: 9.545725754 | M53: 8.112626188 | N53: 137.8361831 | O53: 58.14835948 | P53: 175.9425001
B54: 1447807_s_at | C54: Plekhh1 | D54: 0.828468 | E54: 48 | F54: 23.49 | G54: 9.341386 | H54: 1.12e-05 | I54: 0.0044723 | J54: 3.957485 | K54: 58.94987611 | L54: 61.87835017 | M54: 58.86980451 | N54: 150.1806957 | O54: 211.2962432 | P54: 106.9511293
B55: 1433853_at | C55: Mib1 | D55: 2.26492 | E55: 49 | F55: 23.46 | G55: 9.290093 | H55: 1.17e-05 | I55: 0.0045046 | J55: 3.918285 | K55: 171.0009199 | L55: 180.6518125 | M55: 179.8273971 | N55: 1612.689682 | O55: 935.4255113 | P55: 772.2215374
B56: 1448865_at | C56: Hsd17b7 | D56: 0.9159156 | E56: 50 | F56: 23.39 | G56: 9.230879 | H56: 1.23e-05 | I56: 0.0045865 | J56: 3.87273 | K56: 43.76130782 | L56: 47.59137658 | M56: 58.47536121 | N56: 151.3310701 | O56: 141.1758617 | P56: 165.6031053
B57: 1418020_s_at | C57: Cpd | D57: 1.1414116 | E57: 51 | F57: 23.38 | G57: 9.205108 | H57: 1.25e-05 | I57: 0.0045955 | J57: 3.852803 | K57: 129.6278844 | L57: 110.5425354 | M57: 126.7298802 | N57: 354.4757134 | O57: 461.4481752 | P57: 377.8507005
B58: 1417611_at | C58: Tmem37 | D58: 1.0555651 | E58: 52 | F58: 22.78 | G58: 9.019898 | H58: 1.46e-05 | I58: 0.0052772 | J58: 3.707753 | K58: 326.3252813 | L58: 454.5695921 | M58: 391.4708473 | N58: 1022.209934 | O58: 1269.758604 | P58: 1290.784012
B59: 1417014_at | C59: Hspb8 | D59: 1.1045066 | E59: 53 | F59: 22.42 | G59: 8.913187 | H59: 1.6e-05 | I59: 0.0057294 | J59: 3.622696 | K59: 3154.562779 | L59: 2331.903468 | M59: 2268.993846 | N59: 6420.179337 | O59: 7024.703995 | P59: 6091.362591
B60: 1449273_at | C60: Cyfip2 | D60: 1.4080274 | E60: 54 | F60: 22.28 | G60: 8.866716 | H60: 1.67e-05 | I60: 0.0059136 | J60: 3.585308 | K60: 37.41534795 | L60: 12.51918599 | M60: 19.69265787 | N60: 175.2763937 | O60: 144.6926178 | P60: 139.8301628
B61: 1420745_a_at | C61: Ccndbp1 | D61: 0.9046744 | E61: 55 | F61: 22.20 | G61: 8.825536 | H61: 1.72e-05 | I61: 0.0060325 | J61: 3.552002 | K61: 720.7930496 | L61: 660.0689867 | M61: 628.5672989 | N61: 1400.675212 | O61: 1469.33626 | P61: 1666.617473
B62: 1457248_x_at | C62: Hsd17b7 | D62: 0.9638783 | E62: 56 | F62: 22.07 | G62: 8.757162 | H62: 1.83e-05 | I62: 0.006203 | J62: 3.496331 | K62: 190.470502 | L62: 200.0756519 | M62: 271.4290569 | N62: 553.0729979 | O62: 516.5633043 | P62: 651.9341486
B63: 1438968_x_at | C63: Spint2 | D63: 0.9740582 | E63: 57 | F63: 22.02 | G63: 8.709201 | H63: 1.91e-05 | I63: 0.0062805 | J63: 3.457003 | K63: 177.589728 | L63: 118.6486774 | M63: 140.2040102 | N63: 351.8708323 | O63: 363.9819393 | P63: 450.7446911
B64: 1448618_at | C64: Mvp | D64: 0.8934965 | E64: 58 | F64: 22.02 | G64: 8.702363 | H64: 1.92e-05 | I64: 0.0062805 | J64: 3.451377 | K64: 142.496959 | L64: 205.9266393 | M64: 180.1125445 | N64: 473.9943207 | O64: 412.4531417 | P64: 405.2203341
B65: 1438018_at | C65: Hook1 | D65: 0.8861287 | E65: 59 | F65: 21.99 | G65: 8.682075 | H65: 1.95e-05 | I65: 0.0063229 | J65: 3.434658 | K65: 1419.019289 | L65: 1688.168728 | M65: 1700.837112 | N65: 3601.71944 | O65: 3202.52191 | P65: 3205.610017
B66: 1454674_at | C66: Fez1 | D66: 0.8535366 | E66: 60 | F66: 21.99 | G66: 8.6684 | H66: 1.98e-05 | I66: 0.0063229 | J66: 3.423365 | K66: 59.95113452 | L66: 69.41186734 | M66: 71.5861437 | N66: 167.8187106 | O66: 172.9951397 | P66: 120.020793
B67: 1423724_at | C67: Zwint | D67: 0.7935329 | E67: 61 | F67: 21.97 | G67: 8.653956 | H67: 2.00E-05 | I67: 0.0063531 | J67: 3.411416 | K67: 908.3239078 | L67: 838.1005863 | M67: 849.0677526 | N67: 1810.520636 | O67: 1796.111101 | P67: 1746.813854
B68: 1417871_at | C68: Hsd17b7 | D68: 0.9751005 | E68: 62 | F68: 21.83 | G68: 8.601764 | H68: 2.09e-05 | I68: 0.0065638 | J68: 3.368064 | K68: 29.61834303 | L68: 48.39367421 | M68: 37.77067365 | N68: 107.3705011 | O68: 115.2789702 | P68: 122.9785529
B69: 1447927_at | C69: Gbp6 | D69: 1.2712612 | E69: 63 | F69: 21.78 | G69: 8.571116 | H69: 2.15e-05 | I69: 0.0066429 | J69: 3.342479 | K69: 624.1192305 | L69: 601.7234815 | M69: 617.284531 | N69: 2033.813271 | O69: 2301.663947 | P69: 1332.983299
B70: 1448676_at | C70: Camk2b | D70: 0.8103384 | E70: 64 | F70: 21.70 | G70: 8.533251 | H70: 2.22E-05 | I70: 0.0067532 | J70: 3.310735 | K70: 1646.005647 | L70: 1714.365844 | M70: 1836.194151 | N70: 3740.26147 | O70: 3274.171462 | P70: 3623.518283
B71: 1419613_at | C71: Col7a1 | D71: 0.8323135 | E71: 65 | F71: 21.70 | G71: 8.529247 | H71: 2.23e-05 | I71: 0.0067532 | J71: 3.30737 | K71: 117.1355164 | L71: 141.3949867 | M71: 128.9189985 | N71: 334.0974252 | O71: 275.8598282 | P71: 396.9542506
B72: 1423596_at | C72: Nek6 | D72: 0.7368824 | E72: 66 | F72: =-10*LOG10(I72) -> 21.70 | G72: 8.518232 | H72: 2.25e-05 | I72: 0.0067541 | J72: 3.298103 | K72: 219.116411 | L72: 196.199404 | M72: 226.3203817 | N72: 433.0724858 | O72: 436.289286 | P72: 487.9270487
B73: 1454808_at | C73: Micu2 | D73: 0.7728374 | E73: 67 | F73: 21.70 | G73: 8.473266 | H73: 2.34e-05 | I73: 0.0067541 | J73: 3.260145 | K73: 1343.737186 | L73: 1384.443123 | M73: 1420.9126 | N73: 2566.757627 | O73: 3074.984312 | P73: 2367.394506
B74: 1426383_at | C74: Cry2 | D74: 0.7597816 | E74: 68 | F74: 21.70 | G74: 8.473212 | H74: 2.34e-05 | I74: 0.0067541 | J74: 3.260099 | K74: 589.3811732 | L74: 706.5273156 | M74: 737.6675227 | N74: 1241.494925 | O74: 1277.598438 | P74: 1435.909152
B75: 1449591_at | C75: Casp4 | D75: 1.262164 | E75: 69 | F75: 21.70 | G75: 8.462987 | H75: 2.37e-05 | I75: 0.0067541 | J75: 3.251438 | K75: 16.28848059 | L75: 12.94898587 | M75: 12.94898587 | N75: 44.9894245 | O75: 61.98757086 | P75: 35.77079059
B76: 1421223_a_at | C76: Anxa4 | D76: 0.9659503 | E76: 70 | F76: 21.52 | G76: 8.392786 | H76: 2.52e-05 | I76: 0.0070536 | J76: 3.191681 | K76: 486.2034222 | L76: 391.4121502 | M76: 510.0106178 | N76: 1069.23677 | O76: 1240.973347 | P76: 960.174559
B77: 1452757_s_at | C77: Hba-a2///Hba-a1 | D77: 1.064678 | E77: 71 | F77: 21.51 | G77: 8.382158 | H77: 2.54e-05 | I77: 0.0070684 | J77: 3.182589 | K77: 11986.38577 | L77: 11512.87142 | M77: 11734.90175 | N77: 27196.50975 | O77: 35523.18748 | P77: 23199.8155
B78: 1440878_at | C78: Runx1 | D78: 1.6911165 | E78: 72 | F78: 21.38 | G78: 8.32218 | H78: 2.68e-05 | I78: 0.0072732 | J78: 3.131056 | K78: 17.31524112 | L78: 11.42563289 | M78: 9.371473052 | N78: 128.1288036 | O78: 70.4834862 | P78: 55.58552812
B79: 1450957_a_at | C79: Sqstm1 | D79: 0.7581939 | E79: 73 | F79: 21.38 | G79: 8.317702 | H79: 2.69e-05 | I79: 0.0072732 | J79: 3.127194 | K79: 8136.810581 | L79: 7641.666067 | M79: 6707.15931 | N79: 13639.8808 | O79: 14983.13734 | P79: 14282.10224
B80: 1440559_at | C80: Hmga2-ps1 | D80: 0.8026074 | E80: 74 | F80: 21.38 | G80: 8.298238 | H80: 2.74E-05 | I80: 0.0072821 | J80: 3.110379 | K80: 579.3768383 | L80: 589.4365593 | M80: 588.135557 | N80: 1052.215483 | O80: 1052.879159 | P80: 1192.81623
B81: 1417714_x_at | C81: Hba-a2///Hba-a1 | D81: 3.0558481 | E81: 75 | F81: 21.38 | G81: 8.28363 | H81: 2.78e-05 | I81: 0.0072821 | J81: 3.097733 | K81: 752.8579463 | L81: 906.3697571 | M81: 810.1847166 | N81: 10809.04853 | O81: 18053.42321 | P81: 4399.926318
B82: 1419289_a_at | C82: Syngr1 | D82: 0.6502137 | E82: 76 | F82: 21.35 | G82: 8.270712 | H82: 2.81e-05 | I82: 0.0073246 | J82: 3.086531 | K82: 512.7641655 | L82: 569.5334895 | M82: 538.6465406 | N82: 992.8675588 | O82: 914.5808251 | P82: 860.8022664
B83: 1455340_at | C83: Dennd5b | D83: 0.9610547 | E83: 77 | F83: 21.30 | G83: 8.251997 | H83: 2.86e-05 | I83: 0.0074067 | J83: 3.07027 | K83: 502.5397251 | L83: 468.8761187 | M83: 512.7078737 | N83: 1185.593597 | O83: 989.1503465 | P83: 1020.538437
B84: 1443960_at | C84: Asrgl1 | D84: 0.7163558 | E84: 78 | F84: 21.29 | G84: 8.241005 | H84: 2.89e-05 | I84: 0.007438 | J84: 3.060702 | K84: 700.6048656 | L84: 701.6619487 | M84: 701.9315673 | N84: 1420.118983 | O84: 1206.201863 | P84: 1260.928125
B85: 1423274_at | C85: Ints6 | D85: 1.1502924 | E85: 79 | F85: 21.27 | G85: 8.230287 | H85: 2.91e-05 | I85: 0.0074679 | J85: 3.05136 | K85: 184.9414828 | L85: 105.04384 | M85: 147.381487 | N85: 361.1661923 | O85: 481.4634167 | P85: 557.5131016
B86: 1427405_s_at | C86: Rab11fip5 | D86: 0.7776533 | E86: 80 | F86: 21.15 | G86: 8.179698 | H86: 3.05E-05 | I86: 0.0076704 | J86: 3.007098 | K86: 521.8220237 | L86: 612.2946092 | M86: 552.9879516 | N86: 1203.571556 | O86: 1159.847621 | P86: 1098.054526
B87: 1448119_at | C87: Bpgm | D87: 0.782844 | E87: 81 | F87: 21.15 | G87: 8.176137 | H87: 3.06e-05 | I87: 0.0076704 | J87: 3.003972 | K87: 1468.005143 | L87: 1340.973654 | M87: 1205.542048 | N87: 2200.660876 | O87: 2470.646383 | P87: 2550.053036
B88: 1416431_at | C88: Tubb6 | D88: 1.4687227 | E88: 82 | F88: 21.10 | G88: 8.153053 | H88: 3.13e-05 | I88: 0.0077696 | J88: 2.983673 | K88: 348.7477502 | L88: 273.0816708 | M88: 277.0600056 | N88: 1008.62733 | O88: 1680.904836 | P88: 921.6063222
B89: 1421832_at | C89: Twsg1 | D89: 0.6841238 | E89: 83 | F89: 21.08 | G89: 8.115404 | H89: 3.24e-05 | I89: 0.0078067 | J89: 2.950444 | K89: 25.76461743 | L89: 26.46824757 | M89: 22.97039406 | N89: 37.87469718 | O89: 38.64320331 | P89: 45.99846713
B90: 1451275_at | C90: Uhrf1bp1l | D90: 0.6916141 | E90: 84 | F90: 21.08 | G90: 8.115134 | H90: 3.24E-05 | I90: 0.0078067 | J90: 2.950205 | K90: 392.8961523 | L90: 394.3978491 | M90: 414.8610635 | N90: 771.1790967 | O90: 760.0309542 | P90: 718.0446848
B91: 1451814_a_at | C91: Htatip2 | D91: 0.8871046 | E91: 85 | F91: 20.93 | G91: 8.066068 | H91: 3.39e-05 | I91: 0.0080804 | J91: 2.906662 | K91: 133.0810815 | L91: 144.8146953 | M91: 147.130583 | N91: 388.2453719 | O91: 413.1257956 | P91: 258.8665731
B92: 1429225_at | C92: Slc24a2 | D92: 1.1507274 | E92: 86 | F92: 20.88 | G92: 8.050171 | H92: 3.44e-05 | I92: 0.0081566 | J92: 2.892499 | K92: 12.69598088 | L92: 9.929240168 | M92: 12.69543662 | N92: 23.87819507 | O92: 35.62104134 | P92: 22.33125679
B93: 1453775_at | C93: Rictor | D93: 1.3010955 | E93: 87 | F93: 20.84 | G93: 8.032618 | H93: 3.49e-05 | I93: 0.0082465 | J93: 2.876826 | K93: 30.51781241 | L93: 26.24684713 | M93: 8.290055118 | N93: 88.05028304 | O93: 110.1182384 | P93: 57.40357002
B94: 1429508_at | C94: 2310057M21Rik | D94: 0.7872383 | E94: 88 | F94: 20.82 | G94: 8.018588 | H94: 3.54e-05 | I94: 0.0082796 | J94: 2.864275 | K94: 814.6414196 | L94: 1015.720734 | M94: 930.673573 | N94: 1587.096997 | O94: 2104.287726 | P94: 1862.59101
B95: 1438676_at | C95: Gbp6 | D95: 1.8180323 | E95: 89 | F95: 20.79 | G95: 7.993987 | H95: 3.62e-05 | I95: 0.008332 | J95: 2.842214 | K95: 244.8499286 | L95: 206.5233104 | M95: 270.2740698 | N95: 1064.261502 | O95: 1350.389522 | P95: 703.5296861
B96: 1438403_s_at | C96: Malat1 | D96: 1.0115258 | E96: 90 | F96: 20.79 | G96: 7.993215 | H96: 3.62e-05 | I96: 0.008332 | J96: 2.841521 | K96: 11416.78578 | L96: 8634.19837 | M96: 8271.117212 | N96: 19870.3253 | O96: 22494.78409 | P96: 23823.7433
B97: 1416456_a_at | C97: Chia1 | D97: 1.5765015 | E97: 91 | F97: 20.51 | G97: 7.897637 | H97: 3.96e-05 | I97: 0.0088851 | J97: 2.75516 | K97: 4.470285555 | L97: 6.662078687 | M97: 4.470285555 | N97: 39.48973461 | O97: 6.692859661 | P97: 10.79148096
B98: 1416055_at | C98: Amy2a2///Amy2a3///Amy2a4///Amy2a1///Amy2a5 | D98: 0.9078745 | E98: 92 | F98: 20.50 | G98: 7.881462 | H98: 4.02e-05 | I98: 0.0089182 | J98: 2.740442 | K98: 17.5652188 | L98: 22.79649482 | M98: 8.585040033 | N98: 44.49940003 | O98: 35.68894547 | P98: 51.60474354
B99: 1431320_a_at | C99: Myo5a | D99: 0.7720759 | E99: 93 | F99: 20.50 | G99: 7.879455 | H99: 4.03e-05 | I99: 0.0089182 | J99: 2.738614 | K99: 86.38737299 | L99: 55.38131331 | M99: 88.96153058 | N99: 132.4413024 | O99: 163.0824216 | P99: 158.3405386
B100: 1425859_a_at | C100: Psmd4 | D100: 0.6617629 | E100: 94 | F100: 20.50 | G100: 7.877878 | H100: 4.03E-05 | I100: 0.0089182 | J100: 2.737178 | K100: 4003.247957 | L100: 3941.251263 | M100: 3647.415014 | N100: 6935.969919 | O100: 6442.076523 | P100: 6580.863831
B101: 1438197_at | C101: Vezt | D101: 0.7319447 | E101: 95 | F101: 20.47 | G101: 7.850959 | H101: 4.14e-05 | I101: 0.0089709 | J101: 2.712608 | K101: 234.4712726 | L101: 234.4712726 | M101: 200.3447441 | N101: 518.8785293 | O101: 439.6831629 | P101: 452.0556375
B102: 1429215_at | C102: 2310058N22Rik | D102: 0.7239346 | E102: 96 | F102: 20.39 | G102: 7.821536 | H102: 4.25E-05 | I102: 0.0091354 | J102: 2.685659 | K102: 142.1307225 | L102: 143.1430056 | M102: 131.1396237 | N102: 248.6585522 | O102: 249.5384172 | P102: 251.0616483
B103: 1424263_at | C103: Aif1l | D103: 1.1681844 | E103: 97 | F103: 20.38 | G103: 7.81451 | H103: 4.28e-05 | I103: 0.0091526 | J103: 2.679208 | K103: 4.716110073 | L103: 4.716110073 | M103: 4.750589602 | N103: 7.764885946 | O103: 4.812661625 | P103: 35.68246759
B104: 1451442_at | C104: Cfap36 | D104: 1.1020408 | E104: 98 | F104: 20.34 | G104: 7.792481 | H104: 4.37e-05 | I104: 0.0092545 | J104: 2.658948 | K104: 395.6995037 | L104: 293.3351991 | M104: 282.6071781 | N104: 808.5952799 | O104: 842.5349968 | P104: 800.1824916
B105: 1429786_a_at | C105: Zwint | D105: 1.4190663 | E105: 99 | F105: 20.33 | G105: 7.759083 | H105: 4.51e-05 | I105: 0.0092643 | J105: 2.628126 | K105: 162.3620548 | L105: 124.033957 | M105: 157.5038562 | N105: 545.7621059 | O105: 465.2618446 | P105: 445.6564482
B106: 1448260_at | C106: Uchl1 | D106: 1.0572696 | E106: 100 | F106: 20.33 | G106: 7.743671 | H106: 4.58e-05 | I106: 0.0092643 | J106: 2.61386 | K106: 6.085244885 | L106: 10.7093388 | M106: 10.14223572 | N106: 61.66471539 | O106: 28.15823169 | P106: 64.40476341
B107: 1417184_s_at | C107: Hbb-bt///Hbb-bs///Hbb-b2///Hbb-b1 | D107: 1.0136009 | E107: 101 | F107: 20.25 | G107: 7.695062 | H107: 4.8e-05 | I107: 0.0094471 | J107: 2.568682 | K107: 6818.098497 | L107: 6400.494156 | M107: 6332.657421 | N107: 13767.83643 | O107: 19531.56398 | P107: 12988.24043
B108: 1422660_at | C108: Gm15453///Rbm3 | D108: 0.619658 | E108: 102 | F108: 20.22 | G108: 7.680612 | H108: 4.86E-05 | I108: 0.0095094 | J108: 2.5552 | K108: 6887.310258 | L108: 7291.518028 | M108: 7010.809174 | N108: 12085.07713 | O108: 11771.70025 | P108: 11338.84884
B109: 1452956_a_at | C109: Ifi27 | D109: 0.7341661 | E109: 103 | F109: 20.22 | G109: 7.679114 | H109: 4.87E-05 | I109: 0.0095094 | J109: 2.553801 | K109: 578.6512043 | L109: 542.4289808 | M109: 555.4744944 | N109: 1056.232736 | O109: 1158.134936 | P109: 1070.525766
B110: 1419254_at | C110: Mthfd2 | D110: 1.1539678 | E110: 104 | F110: 20.19 | G110: 7.660063 | H110: 4.96e-05 | I110: 0.0095806 | J110: 2.535984 | K110: 195.6368741 | L110: 174.3753846 | M110: 95.91659088 | N110: 347.3789896 | O110: 607.4102034 | P110: 475.9795661
B111: 1448127_at | C111: Rrm1 | D111: 0.6724195 | E111: 105 | F111: 20.19 | G111: 7.656975 | H111: 4.98e-05 | I111: 0.0095806 | J111: 2.533091 | K111: 166.90356 | L111: 125.6158784 | M111: 163.5379745 | N111: 346.998858 | O111: 318.3044217 | P111: 320.620891
B112: 1422864_at | C112: Runx1 | D112: 1.9403495 | E112: 106 | F112: 20.11 | G112: 7.607147 | H112: 5.22e-05 | I112: 0.0097414 | J112: 2.486272 | K112: 44.96154265 | L112: 37.17516585 | M112: 15.07418132 | N112: 232.540117 | O112: 282.5909384 | P112: 131.6025626
B113: 1424176_a_at | C113: Anxa4 | D113: 1.3655452 | E113: 107 | F113: 20.11 | G113: 7.606117 | H113: 5.22e-05 | I113: 0.0097414 | J113: 2.485301 | K113: 171.0284376 | L113: 106.6519283 | M113: 163.2453224 | N113: 481.4137859 | O113: 543.441362 | P113: 447.4213111
B114: 1453307_a_at | C114: Anapc5 | D114: 0.6102075 | E114: 108 | F114: 20.02 | G114: 7.554117 | H114: 5.49E-05 | I114: 0.0099516 | J114: 2.436122 | K114: 2285.323433 | L114: 2280.100914 | M114: 2337.704658 | N114: 4240.95201 | O114: 3812.618037 | P114: 4081.140714
B115: 1451935_a_at | C115: Spint2 | D115: 0.7086463 | E115: 109 | F115: 19.98 | G115: 7.525085 | H115: 5.65e-05 | I115: 0.010045 | J115: 2.408525 | K115: 24.57212919 | L115: 10.62029939 | M115: 16.88155011 | N115: 46.9159323 | O115: 49.43080313 | P115: 54.20685095
B116: 1417413_at | C116: Cuzd1 | D116: 0.7425199 | E116: 110 | F116: 19.98 | G116: 7.521819 | H116: 5.67e-05 | I116: 0.010045 | J116: 2.405414 | K116: 47.83741645 | L116: 44.34520688 | M116: 39.60669066 | N116: 86.23778909 | O116: 106.3514082 | P116: 107.6837066
B117: 1421836_at | C117: Map7 | D117: 0.6505534 | E117: 111 | F117: 19.90 | G117: 7.482123 | H117: 5.89e-05 | I117: 0.0102226 | J117: 2.367501 | K117: 121.2241865 | L117: 126.5425343 | M117: 140.0369127 | N117: 217.9815474 | O117: 272.7877998 | P117: 261.5679337
B118: 1425534_at | C118: Stau2 | D118: 0.6856538 | E118: 112 | F118: 19.89 | G118: 7.474747 | H118: 5.94e-05 | I118: 0.0102572 | J118: 2.360435 | K118: 1372.86409 | L118: 1641.629598 | M118: 1546.554901 | N118: 2627.472326 | O118: 2623.846337 | P118: 2690.857589
B119: 1437428_x_at | C119: Eif2b2 | D119: 0.5832265 | E119: 113 | F119: 19.86 | G119: 7.464569 | H119: 6e-05 | I119: 0.0103203 | J119: 2.350676 | K119: 84.7084205 | L119: 80.06100391 | M119: 79.20899301 | N119: 119.4851191 | O119: 112.4573391 | P119: 95.15777903
B120: 1452517_at | C120: Plekhh1 | D120: 1.1503498 | E120: 114 | F120: 19.77 | G120: 7.4158 | H120: 6.29e-05 | I120: 0.0105543 | J120: 2.303734 | K120: 6.90825771 | L120: 11.84079943 | M120: 11.82440958 | N120: 23.00819822 | O120: 19.90550183 | P120: 11.84079943
B121: 1431611_a_at | C121: Cadm1 | D121: 0.7945292 | E121: 115 | F121: 19.71 | G121: 7.38659 | H121: 6.47e-05 | I121: 0.0106935 | J121: 2.27548 | K121: 31.65749113 | L121: 39.35674783 | M121: 20.3168071 | N121: 98.25298638 | O121: 57.17572003 | P121: 47.86116603
B122: 1417052_at | C122: Psmb3 | D122: 0.6136904 | E122: 116 | F122: 19.68 | G122: 7.371209 | H122: 6.57e-05 | I122: 0.0107701 | J122: 2.26056 | K122: 2727.255899 | L122: 2465.179005 | M122: 2516.595889 | N122: 4373.483299 | O122: 4011.213261 | P122: 4114.267175
B123: 1416039_x_at | C123: Cyr61 | D123: 1.0362327 | E123: 117 | F123: 19.68 | G123: 7.370348 | H123: 6.58e-05 | I123: 0.0107701 | J123: 2.259725 | K123: 243.2452057 | L123: 364.6296446 | M123: 405.5995824 | N123: 757.448763 | O123: 1002.988237 | P123: 998.701706
B124: 1438862_at | C124: NA | D124: 0.8003978 | E124: 118 | F124: 19.68 | G124: 7.367695 | H124: 6.59e-05 | I124: 0.0107701 | J124: 2.257148 | K124: 12.68437462 | L124: 7.21819151 | M124: 7.266861145 | N124: 31.21668038 | O124: 27.89044919 | P124: 37.76040077
B125: 1424072_at | C125: 2010107G23Rik | D125: 1.02257 | E125: 119 | F125: 19.68 | G125: 7.347407 | H125: 6.73e-05 | I125: 0.0107701 | J125: 2.237416 | K125: 54.75720691 | L125: 78.57751196 | M125: 57.39801714 | N125: 200.6061989 | O125: 187.9241081 | P125: 122.0558629
B126: 1424245_at | C126: Ces2d-ps///Ces2c | D126: 2.4028964 | E126: 120 | F126: 19.68 | G126: 7.344397 | H126: 6.75e-05 | I126: 0.0107701 | J126: 2.234485 | K126: 10.82807259 | L126: 10.82807259 | M126: 11.89687946 | N126: 316.457955 | O126: 223.3956573 | P126: 44.36202502
B127: 1455649_at | C127: Ttc9 | D127: 1.1314781 | E127: 121 | F127: 19.63 | G127: 7.327418 | H127: 6.86e-05 | I127: 0.0108995 | J127: 2.217926 | K127: 30.44654485 | L127: 13.82144854 | M127: 27.05871415 | N127: 151.0870537 | O127: 213.7104324 | P127: 56.10968533
B128: 1417602_at | C128: Per2 | D128: 1.0029084 | E128: 122 | F128: 19.56 | G128: 7.305617 | H128: 7.01e-05 | I128: 0.0110736 | J128: 2.196613 | K128: 136.4734292 | L128: 180.2637018 | M128: 201.3759735 | N128: 443.2697321 | O128: 364.4745547 | P128: 391.8058063
B129: 1430047_at | C129: Slf1 | D129: 0.8356152 | E129: 123 | F129: 19.56 | G129: 7.304423 | H129: 7.02e-05 | I129: 0.0110736 | J129: 2.195444 | K129: 110.6061157 | L129: 108.5071034 | M129: 67.63389706 | N129: 130.8183445 | O129: 198.7532189 | P129: 213.0732726
B130: 1417341_a_at | C130: Ppp1r2 | D130: 0.7737671 | E130: 124 | F130: 19.47 | G130: 7.279158 | H130: 7.2e-05 | I130: 0.0112855 | J130: 2.170667 | K130: 1411.095918 | L130: 1138.638406 | M130: 1234.910662 | N130: 2286.844766 | O130: 2193.541476 | P130: 2597.899895
B131: 1436566_at | C131: Rab40b | D131: 0.7883169 | E131: 125 | F131: 19.47 | G131: 7.267482 | H131: 7.29e-05 | I131: 0.0113109 | J131: 2.159189 | K131: 1683.519874 | L131: 1347.429555 | M131: 1468.249584 | N131: 2745.907579 | O131: 2818.881744 | P131: 2657.954659
B132: 1415957_a_at | C132: Rrp1 | D132: 0.5951225 | E132: 126 | F132: 19.38 | G132: 7.239776 | H132: 7.49e-05 | I132: 0.0115299 | J132: 2.131887 | K132: 317.7558281 | L132: 408.3452219 | M132: 333.2048962 | N132: 566.8357675 | O132: 646.5519787 | P132: 675.3661158
B133: 1455967_at | C133: Sorbs1 | D133: 0.9833376 | E133: 127 | F133: 19.33 | G133: 7.215612 | H133: 7.67e-05 | I133: 0.0116775 | J133: 2.107997 | K133: 438.8997536 | L133: 488.4854699 | M133: 483.1368512 | N133: 1334.805229 | O133: 887.2390499 | P133: 1038.459382
B134: 1423745_at | C134: Snap47 | D134: 0.5927472 | E134: 128 | F134: 19.33 | G134: 7.213631 | H134: 7.69e-05 | I134: 0.0116775 | J134: 2.106036 | K134: 522.5260519 | L134: 619.5535191 | M134: 585.8658538 | N134: 867.1970206 | O134: 915.6900171 | P134: 939.4851348
B135: 1422791_at | C135: Pafah1b2 | D135: 0.631183 | E135: 129 | F135: 19.33 | G135: 7.199411 | H135: 7.8e-05 | I135: 0.0116775 | J135: 2.09194 | K135: 93.95308326 | L135: 113.6866592 | M135: 94.34281961 | N135: 184.2040082 | O135: 199.8213555 | P135: 135.1766508
B136: 1453187_at | C136: Ociad2 | D136: 0.8739399 | E136: 130 | F136: =-10*LOG10(I136) -> 19.33 | G136: 7.180841 | H136: 7.95e-05 | I136: 0.0116775 | J136: 2.073494 | K136: 2532.144285 | L136: 2079.378761 | M136: 2125.381771 | N136: 5046.359629 | O136: 5487.30147 | P136: 4204.079779
B137: 1451109_a_at | C137: Nedd4 | D137: 0.6597783 | E137: 131 | F137: 19.31 | G137: 7.166064 | H137: 8.07e-05 | I137: 0.0117336 | J137: 2.058784 | K137: 1562.332454 | L137: 1320.192748 | M137: 1452.684022 | N137: 2665.541369 | O137: 2405.24246 | P137: 2662.371238
B138: 1422609_at | C138: Arpp19 | D138: 0.6301569 | E138: 132 | F138: 19.31 | G138: 7.158274 | H138: 8.13E-05 | I138: 0.0117336 | J138: 2.051018 | K138: 1275.653394 | L138: 1241.190851 | M138: 1232.762383 | N138: 2107.920137 | O138: 2194.220827 | P138: 2017.046685
B139: 1435053_s_at | C139: Plekhh1 | D139: 0.7353914 | E139: 133 | F139: 19.26 | G139: 7.143465 | H139: 8.25e-05 | I139: 0.0118548 | J139: 2.036235 | K139: 12.92711137 | L139: 10.34772177 | M139: 12.92711137 | N139: 14.21632394 | O139: 19.86518043 | P139: 26.77255258
B140: 1418726_a_at | C140: Tnnt2 | D140: 1.2347827 | E140: 134 | F140: 19.23 | G140: 7.129722 | H140: 8.37e-05 | I140: 0.0119449 | J140: 2.022491 | K140: 133.9486521 | L140: 160.2076348 | M140: 174.6838397 | N140: 305.8294467 | O140: 614.0123137 | P140: 476.2496066
B141: 1455665_at | C141: Lonrf1 | D141: 0.5923458 | E141: 135 | F141: 19.20 | G141: 7.09947 | H141: 8.63E-05 | I141: 0.0120183 | J141: 1.992152 | K141: 1104.063493 | L141: 1168.361651 | M141: 1121.992505 | N141: 1987.807795 | O141: 1800.260004 | P141: 1824.387668
B142: 1421846_at | C142: Wsb2 | D142: 0.6136748 | E142: 136 | F142: 19.20 | G142: 7.08576 | H142: 8.75e-05 | I142: 0.0120183 | J142: 1.978364 | K142: 738.2839545 | L142: 849.3460859 | M142: 766.2883555 | N142: 1238.240982 | O142: 1349.861642 | P142: 1255.400819
B143: 1426313_at | C143: Bre | D143: 0.7906154 | E143: 137 | F143: 19.20 | G143: 7.071578 | H143: 8.88e-05 | I143: 0.0120183 | J143: 1.964076 | K143: 242.7367537 | L143: 163.0416642 | M143: 231.5783852 | N143: 436.069331 | O143: 498.1377681 | P143: 372.1852691
B144: 1436411_at | C144: Atp13a5 | D144: 0.9880068 | E144: 138 | F144: 19.20 | G144: 7.061578 | H144: 8.97e-05 | I144: 0.0120183 | J144: 1.953987 | K144: 39.80836166 | L144: 39.42147276 | M144: 60.75387208 | N144: 94.9449231 | O144: 181.7262203 | P144: 175.2039069
B145: 1420820_at | C145: Myl12a | D145: 0.5779747 | E145: 139 | F145: 19.18 | G145: 7.051822 | H145: 9.06E-05 | I145: 0.0120891 | J145: 1.944131 | K145: 22887.29308 | L145: 22518.78418 | M145: 22599.68978 | N145: 37949.35464 | O145: 35938.55372 | P145: 35087.48522
B146: 1416418_at | C146: Gabarapl1 | D146: 1.0179701 | E146: 140 | F146: 19.07 | G146: 7.022506 | H146: 9.34e-05 | I146: 0.0123841 | J146: 1.914441 | K146: 2000.762674 | L146: 1386.695539 | M146: 1723.046961 | N146: 3818.040765 | O146: 4397.810277 | P146: 3387.524605
B147: 1450505_a_at | C147: Fam134b | D147: 0.5690979 | E147: 141 | F147: 19.06 | G147: 7.017002 | H147: 9.39E-05 | I147: 0.0124177 | J147: 1.908854 | K147: 5335.488856 | L147: 5259.08169 | M147: 5283.708526 | N147: 8008.087333 | O147: 7934.97927 | P147: 8175.84125
B148: 1456586_x_at | C148: Mvp | D148: 0.7855864 | E148: 142 | F148: 19.00 | G148: 7.001463 | H148: 9.54e-05 | I148: 0.0125805 | J148: 1.893062 | K148: 232.1263012 | L148: 257.0274447 | M148: 305.9215892 | N148: 626.6374645 | O148: 534.2591395 | P148: 525.2086985
B149: 1451782_a_at | C149: Slc29a1 | D149: 0.6882638 | E149: 143 | F149: 18.97 | G149: 6.981756 | H149: 9.74e-05 | I149: 0.0126711 | J149: 1.872988 | K149: 36.1878444 | L149: 37.94545294 | M149: 44.29223121 | N149: 86.20518099 | O149: 98.60762748 | P149: 110.9994377
B150: 1418019_at | C150: Cpd | D150: 0.7443093 | E150: 144 | F150: 18.97 | G150: 6.980376 | H150: 9.75e-05 | I150: 0.0126711 | J150: 1.871581 | K150: 195.4607269 | L150: 92.01001822 | M150: 153.0563456 | N150: 298.0366906 | O150: 285.2109147 | P150: 315.9625096
B151: 1418517_at | C151: Irx3 | D151: 1.2045315 | E151: 145 | F151: 18.97 | G151: 6.977104 | H151: 9.78e-05 | I151: 0.0126763 | J151: 1.868242 | K151: 150.1346041 | L151: 220.1930155 | M151: 260.9891868 | N151: 578.3858916 | O151: 917.7293958 | P151: 671.0933458
B152: 1436520_at | C152: Ahnak2 | D152: 0.6281032 | E152: 146 | F152: 18.97 | G152: 6.970914 | H152: 9.84e-05 | I152: 0.0126763 | J152: 1.861923 | K152: 72.25382927 | L152: 60.04442703 | M152: 67.71058256 | N152: 150.6539821 | O152: 147.4078832 | P152: 109.5289527
B153: 1434354_at | C153: Maob | D153: 0.7649821 | E153: 147 | F153: 18.97 | G153: 6.961204 | H153: 9.94e-05 | I153: 0.0126763 | J153: 1.852 | K153: 760.5847666 | L153: 826.2140767 | M153: 920.644402 | N153: 1717.690088 | O153: 1404.488282 | P153: 1485.355586
B154: 1449629_s_at | C154: Snrpd3 | D154: 0.6075103 | E154: 148 | F154: 18.97 | G154: 6.960612 | H154: 9.95e-05 | I154: 0.0126763 | J154: 1.851395 | K154: 435.4073667 | L154: 541.9690043 | M154: 471.5435607 | N154: 899.3100825 | O154: 841.345967 | P154: 754.4873401
B155: 1424613_at | C155: Gprc5b | D155: 0.7332977 | E155: 149 | F155: 18.94 | G155: 6.95102 | H155: 0.0001 | I155: 0.0127664 | J155: 1.841581 | K155: 689.9701724 | L155: 537.1906218 | M155: 584.0528371 | N155: 1411.133178 | O155: 1308.507559 | P155: 1229.089644
B156: 1460460_a_at | C156: Gorasp2 | D156: 0.605718 | E156: 150 | F156: 18.74 | G156: 6.895129 | H156: 0.000106 | I156: 0.0133768 | J156: 1.784152 | K156: 103.6409154 | L156: 118.5563544 | M156: 114.4047098 | N156: 246.923281 | O156: 223.3530546 | P156: 191.4701378
B157: 1419754_at | C157: Myo5a | D157: 1.230904 | E157: 151 | F157: 18.73 | G157: 6.89131 | H157: 0.000107 | I157: 0.0133927 | J157: 1.780214 | K157: 179.9886734 | L157: 120.9443811 | M157: 184.4050641 | N157: 443.9188815 | O157: 419.102766 | P157: 529.6901128
B158: 1450013_at | C158: Myl12a | D158: 0.6865175 | E158: 152 | F158: 18.73 | G158: 6.887858 | H158: 0.000107 | I158: 0.0134037 | J158: 1.776652 | K158: 568.4379377 | L158: 603.1774524 | M158: 630.738008 | N158: 1146.808398 | O158: 1323.094285 | P158: 988.6316191
B159: 1418930_at | C159: Cxcl10 | D159: 1.3822134 | E159: 153 | F159: 18.72 | G159: 6.882502 | H159: 0.000108 | I159: 0.0134243 | J159: 1.771122 | K159: 18.73838426 | L159: 22.67859222 | M159: 7.623670527 | N159: 67.52219532 | O159: 31.55005829 | P159: 57.02133213
B160: 1455144_s_at | C160: Arhgap44 | D160: 0.7035656 | E160: 154 | F160: 18.72 | G160: 6.877557 | H160: 0.000108 | I160: 0.0134365 | J160: 1.766014 | K160: 219.0028957 | L160: 238.9457084 | M160: 298.8951904 | N160: 456.9340006 | O160: 484.6298167 | P160: 425.088917
B161: 1422865_at | C161: Runx1 | D161: 1.4661829 | E161: 155 | F161: 18.71 | G161: 6.873835 | H161: 0.000109 | I161: 0.0134517 | J161: 1.762166 | K161: 4.698876376 | L161: 4.783184124 | M161: 4.981198827 | N161: 38.71314155 | O161: 7.169057014 | P161: 7.729645047
B162: 1450070_s_at | C162: Pak1 | D162: 0.6074801 | E162: 156 | F162: 18.66 | G162: 6.854956 | H162: 0.000111 | I162: 0.0136221 | J162: 1.742624 | K162: 388.8374752 | L162: 273.2894591 | M162: 339.2889439 | N162: 627.30911 | O162: 691.6242494 | P162: 573.8752072
B163: 1425426_a_at | C163: Mef2a | D163: 0.5852005 | E163: 157 | F163: 18.66 | G163: 6.84918 | H163: 0.000112 | I163: 0.0136221 | J163: 1.736635 | K163: 47.48899467 | L163: 63.20544973 | M163: 53.7315673 | N163: 110.251102 | O163: 72.9416942 | P163: 105.4975616
B164: 1428410_at | C164: Naa50 | D164: 0.6120234 | E164: 158 | F164: 18.66 | G164: 6.835874 | H164: 0.000113 | I164: 0.0136221 | J164: 1.722823 | K164: 6699.786374 | L164: 6453.42369 | M164: 7229.481852 | N164: 11446.13025 | O164: 10526.36242 | P164: 10638.13785
B165: 1441069_at | C165: Zdhhc23 | D165: 0.593626 | E165: 159 | F165: 18.66 | G165: 6.83081 | H165: 0.000114 | I165: 0.0136221 | J165: 1.71756 | K165: 194.6519555 | L165: 190.8048207 | M165: 176.8656807 | N165: 289.4443473 | O165: 305.9220996 | P165: 324.2819363
B166: 1434273_at | C166: Fam174b | D166: 0.9492464 | E166: 160 | F166: 18.64 | G166: 6.822084 | H166: 0.000115 | I166: 0.0136646 | J166: 1.708484 | K166: 14.09567985 | L166: 14.4225234 | M166: 13.32768727 | N166: 26.32464671 | O166: 27.43267581 | P166: 15.07239473
B167: 1415773_at | C167: Ncl | D167: 0.7590754 | E167: 161 | F167: 18.64 | G167: 6.817744 | H167: 0.000115 | I167: 0.0136646 | J167: 1.703966 | K167: 2475.623699 | L167: 1831.995261 | M167: 2120.83025 | N167: 4041.272489 | O167: 4186.761366 | P167: 3736.366065
B168: 1435571_at | C168: Mpzl3 | D168: 1.9137481 | E168: 162 | F168: 18.64 | G168: 6.814618 | H168: 0.000116 | I168: 0.0136735 | J168: 1.70071 | K168: 21.56356862 | L168: 35.37465143 | M168: 50.30400493 | N168: 263.3583109 | O168: 654.1454495 | P168: 449.693867
B169: 1422580_at | C169: Myl4 | D169: 0.793615 | E169: 163 | F169: 18.61 | G169: 6.804652 | H169: 0.000117 | I169: 0.0137733 | J169: 1.690322 | K169: 618.3319474 | L169: 605.9275195 | M169: 511.0112513 | N169: 1013.516553 | O169: 1196.826297 | P169: 1437.968447
B170: 1454693_at | C170: Hdac4 | D170: 0.6690616 | E170: 164 | F170: 18.58 | G170: 6.791905 | H170: 0.000119 | I170: 0.0138583 | J170: 1.677015 | K170: 527.0364832 | L170: 601.0769286 | M170: 601.0769286 | N170: 1113.442551 | O170: 924.9494179 | P170: 888.3415436
B171: 1425543_s_at | C171: Plekha5 | D171: 1.035129 | E171: 165 | F171: 18.54 | G171: 6.776855 | H171: 0.00012 | I171: 0.0140068 | J171: 1.661278 | K171: 5.465407531 | L171: 6.415035664 | M171: 5.945926499 | N171: 10.1092648 | O171: 16.07073163 | P171: 6.828145224
B172: 1421052_a_at | C172: Gm14680///Sms | D172: 0.6426672 | E172: 166 | F172: 18.53 | G172: 6.773976 | H172: 0.000121 | I172: 0.0140132 | J172: 1.658264 | K172: 4129.291232 | L172: 3492.498663 | M172: 3626.484074 | N172: 6530.407273 | O172: 6336.515068 | P172: 6412.626081
B173: 1418206_at | C173: Sdf2l1 | D173: 0.62192 | E173: 167 | F173: 18.51 | G173: 6.763867 | H173: 0.000122 | I173: 0.0140791 | J173: 1.647672 | K173: 96.94814275 | L173: 71.29887506 | M173: 93.65039426 | N173: 192.5342561 | O173: 168.237312 | P173: 150.8148832
B174: 1426471_at | C174: Zfp52 | D174: 0.8347845 | E174: 168 | F174: 18.48 | G174: 6.741626 | H174: 0.000125 | I174: 0.0141896 | J174: 1.62432 | K174: 705.0255732 | L174: 806.7644784 | M174: 898.7831936 | N174: 1506.166183 | O174: 1641.201131 | P174: 1495.336955
B175: 1424699_at | C175: Ccdc136 | D175: 0.6052052 | E175: 169 | F175: 18.48 | G175: 6.740804 | H175: 0.000125 | I175: 0.0141896 | J175: 1.623456 | K175: 208.9531163 | L175: 255.2671099 | M175: 222.6918678 | N175: 447.6288223 | O175: 387.9577016 | P175: 466.1538374
B176: 1432554_at | C176: 2310040G07Rik | D176: 0.5427593 | E176: 170 | F176: 18.46 | G176: 6.725426 | H176: 0.000127 | I176: 0.0142695 | J176: 1.60727 | K176: 234.7676309 | L176: 240.0757993 | M176: 239.6138027 | N176: 406.3189985 | O176: 518.6052264 | P176: 421.8958249
B177: 1448192_s_at | C177: Prps1l3///Prps1 | D177: 0.698438 | E177: 171 | F177: 18.46 | G177: 6.725282 | H177: 0.000127 | I177: 0.0142695 | J177: 1.607119 | K177: 867.6608369 | L177: 792.0707529 | M177: 729.5511998 | N177: 1481.125386 | O177: 1297.779365 | P177: 1238.250407
B178: 1423481_at | C178: Riok2 | D178: 0.5559537 | E178: 172 | F178: 18.46 | G178: 6.723385 | H178: 0.000127 | I178: 0.0142695 | J178: 1.605119 | K178: 273.3038658 | L178: 241.7730991 | M178: 265.9858147 | N178: 410.9907893 | O178: 493.195537 | P178: 410.0295448
B179: 1425394_at | C179: BC023105 | D179: 0.9472804 | E179: 173 | F179: 18.42 | G179: 6.708972 | H179: 0.000129 | I179: 0.0143809 | J179: 1.589916 | K179: 626.7325283 | L179: 620.5365674 | M179: 667.0931905 | N179: 1236.194335 | O179: 1965.144973 | P179: 1619.783299
B180: 1435917_at | C180: Ociad2 | D180: 0.7973736 | E180: 174 | F180: 18.41 | G180: 6.69725 | H180: 0.000131 | I180: 0.0144188 | J180: 1.577531 | K180: 1856.611206 | L180: 1622.991796 | M180: 1876.19379 | N180: 3501.004357 | O180: 4687.657159 | P180: 3299.043791
B181: 1425329_a_at | C181: Cyb5r3 | D181: 0.5988607 | E181: 175 | F181: 18.26 | G181: 6.660854 | H181: 0.000136 | I181: 0.0149152 | J181: 1.53896 | K181: 48.51758356 | L181: 54.54168961 | M181: 40.95080547 | N181: 87.56953198 | O181: 82.4337816 | P181: 62.4201037
B182: 1426534_a_at | C182: Arfgap3 | D182: 0.6073474 | E182: 176 | F182: 18.25 | G182: 6.649699 | H182: 1.38E-04 | I182: 0.0149775 | J182: 1.527102 | K182: 63.46680217 | L182: 61.64536872 | M182: 66.78029271 | N182: 118.2391028 | O182: 119.8109864 | P182: 107.1255094
B183: 1426221_at | C183: Vwa5a | D183: 0.6898204 | E183: 177 | F183: 18.25 | G183: 6.647888 | H183: 0.000138 | I183: 0.0149775 | J183: 1.525175 | K183: 591.9600878 | L183: 522.571533 | M183: 484.4337502 | N183: 835.3322983 | O183: 1147.890781 | P183: 1012.268507
B184: 1453898_at | C184: Nmrk2 | D184: 1.600898 | E184: 178 | F184: 18.24 | G184: 6.64485 | H184: 0.000139 | I184: 0.0149901 | J184: 1.521942 | K184: 1396.058805 | L184: 3025.817273 | M184: 2948.259906 | N184: 10053.57181 | O184: 10189.89533 | P184: 7193.202209
B185: 1454015_a_at | C185: Cdh13 | D185: 0.7077543 | E185: 179 | F185: 18.21 | G185: 6.631077 | H185: 0.000141 | I185: 0.0151036 | J185: 1.507269 | K185: 295.7797014 | L185: 183.8634515 | M185: 249.9982087 | N185: 491.6502035 | O185: 487.3264638 | P185: 501.8646846
B186: 1431431_a_at | C186: Nfs1 | D186: 0.6123574 | E186: 180 | F186: 18.21 | G186: 6.625919 | H186: 0.000141 | I186: 0.0151152 | J186: 1.501768 | K186: 464.7463225 | L186: 477.4682322 | M186: 380.1258927 | N186: 796.3137962 | O186: 679.0001932 | P186: 871.5665407
B187: 1420592_a_at | C187: Anp32e | D187: 0.5627586 | E187: 181 | F187: 18.19 | G187: 6.620984 | H187: 0.000142 | I187: 0.0151593 | J187: 1.4965 | K187: 1132.330883 | L187: 1193.287227 | M187: 1152.613533 | N187: 2166.856866 | O187: 1923.519278 | P187: 1929.691872
B188: 1455061_a_at | C188: Acaa2 | D188: 0.6892714 | E188: 182 | F188: 18.17 | G188: 6.61438 | H188: 0.000143 | I188: 0.0152309 | J188: 1.489446 | K188: 1505.59607 | L188: 1951.4872 | M188: 1850.951614 | N188: 3242.082545 | O188: 2828.667659 | P188: 3131.237812
B189: 1452670_at | C189: Myl9 | D189: 1.0973572 | E189: 183 | F189: 18.15 | G189: 6.604984 | H189: 0.000145 | I189: 0.0153128 | J189: 1.479401 | K189: 617.2861023 | L189: 396.2254296 | M189: 455.5762186 | N189: 1021.898803 | O189: 1363.10323 | P189: 1226.447473
B190: 1416794_at | C190: Atl2 | D190: 0.776185 | E190: 184 | F190: 18.11 | G190: 6.58215 | H190: 0.000148 | I190: 0.0154391 | J190: 1.454937 | K190: 2144.699145 | L190: 1756.114235 | M190: 1750.447064 | N190: 3607.84145 | O190: 3361.460153 | P190: 4332.80446
B191: 1457344_at | C191: Neto2 | D191: 0.7627126 | E191: 185 | F191: 18.10 | G191: 6.573839 | H191: 0.00015 | I191: 0.0154912 | J191: 1.446016 | K191: 7.594183092 | L191: 5.276638574 | M191: 7.594183092 | N191: 9.682821898 | O191: 15.7960628 | P191: 22.77927606
B192: 1428112_at | C192: Manf | D192: 0.5991959 | E192: 186 | F192: 18.10 | G192: 6.572108 | H192: 0.00015 | I192: 0.0154912 | J192: 1.444156 | K192: 1051.392722 | L192: 1087.121239 | M192: 1005.565491 | N192: 2012.459199 | O192: 2009.627286 | P192: 1619.569719
B193: 1425756_at | C193: Rab40b | D193: 0.6701075 | E193: 187 | F193: 18.10 | G193: 6.570169 | H193: 0.00015 | I193: 0.0154912 | J193: 1.442073 | K193: 64.89263007 | L193: 62.59746615 | M193: 64.13180425 | N193: 184.4380873 | O193: 150.4114696 | P193: 124.1098758
B194: 1426387_x_at | C194: Pisd///Pisd-ps1///Pisd-ps3 | D194: 1.0058002 | E194: 188 | F194: 18.10 | G194: 6.567667 | H194: 0.000151 | I194: 0.0154912 | J194: 1.439384 | K194: 445.7012336 | L194: 217.8894908 | M194: 339.9066994 | N194: 793.9088678 | O194: 721.6771436 | P194: 741.5155649
B195: 1450039_at | C195: Usp9x | D195: 0.8093147 | E195: 189 | F195: 18.10 | G195: 6.557801 | H195: 0.000152 | I195: 0.0154913 | J195: 1.428773 | K195: 265.5639966 | L195: 190.649866 | M195: 260.8548076 | N195: 374.5431566 | O195: 468.9160043 | P195: 433.0648565
B196: 1437513_a_at | C196: Serinc1 | D196: 0.7426326 | E196: 190 | F196: 18.04 | G196: 6.536689 | H196: 0.000156 | I196: 0.0157064 | J196: 1.406021 | K196: 336.349375 | L196: 255.2611232 | M196: 252.8126902 | N196: 527.368214 | O196: 553.5913278 | P196: 531.2421911
B197: 1450888_at | C197: Napb | D197: 0.534496 | E197: 191 | F197: 17.98 | G197: 6.514632 | H197: 0.000159 | I197: 0.0159353 | J197: 1.382185 | K197: 369.0019316 | L197: 326.115775 | M197: 355.8545623 | N197: 659.4498156 | O197: 621.6511771 | P197: 592.2372423
B198: 1449297_at | C198: Casp12 | D198: 0.6275065 | E198: 192 | F198: 17.98 | G198: 6.51387 | H198: 0.00016 | I198: 0.0159353 | J198: 1.381361 | K198: 747.0512944 | L198: 816.6112516 | M198: 843.0245528 | N198: 1252.295787 | O198: 1609.952465 | P198: 1331.421781
B199: 1446096_at | C199: 2310001H17Rik | D199: 0.6422934 | E199: 193 | F199: 17.98 | G199: 6.508372 | H199: 0.000161 | I199: 0.0159353 | J199: 1.375408 | K199: 39.06382196 | L199: 39.59014114 | M199: 38.71024165 | N199: 75.54599782 | O199: 70.17723113 | P199: 63.33413391
B200: 1416881_at | C200: Mcl1 | D200: 0.5771521 | E200: 194 | F200: =-10*LOG10(I200) -> 17.97 | G200: 6.503064 | H200: 0.000161 | I200: 0.0159532 | J200: 1.369658 | K200: 1279.02084 | L200: 1169.037473 | M200: 1158.225881 | N200: 1868.662549 | O200: 1868.862448 | P200: 2127.472231
B201: 1420867_at | C201: Gm10698///Tmed2 | D201: 0.9869046 | E201: 195 | F201: 17.86 | G201: 6.465128 | H201: 0.000168 | I201: 0.0163519 | J201: 1.328446 | K201: 1082.775172 | L201: 794.0928898 | M201: 716.0578331 | N201: 2157.960066 | O201: 1823.482735 | P201: 1942.906873
B202: 1430886_at | C202: 1700112E06Rik | D202: 0.941962 | E202: 196 | F202: 17.85 | G202: 6.460837 | H202: 0.000169 | I202: 0.0163931 | J202: 1.323771 | K202: 4.470285555 | L202: 4.747142454 | M202: 4.470285555 | N202: 11.22576492 | O202: 26.37233728 | P202: 36.63719003
... 4298 more rows
